Cogmind - Beta 12 @@@ ROGUE MODE // 2023.09.11 @ 22:28:00 Player: Rentaro Result: Destroyed by S-43 Plague with Heavy Machine Gun Performance ------------- Evolutions (7) 3500 Regions Visited (12) 2400 Robots Destroyed (23) 115 Value Destroyed (524) 524 Prototype IDs (6) 120 Alien Tech Used (0) 0 Bonus (700) 700 TOTAL SCORE: 7359 Bonus ------- Pacifist 200 Entered DSFs 500 Cogmind --------- Core Integrity 0/1300 Matter 67/300 Energy 100/100 System Corruption 15% Temperature Cool (0) Movement Core (50) Location -3/Research Parts ------- > --- POWER (2) -------- (None) > --- PROPULSION (5) --- (None) > --- UTILITY (10) ----- Machine Analyzer Improved Cloaking Device Graphene Brace Authchip [Armor] > --- WEAPON (4) ------- (None) > --- INVENTORY (5) ---- (None) Peak State ------------ > --- POWER ------------ Particle Reactor Particle Reactor > --- PROPULSION ------- Combat Antigrav System Combat Antigrav System Combat Antigrav System Combat Antigrav System Combat Antigrav System > --- UTILITY ---------- Machine Analyzer Triangulator Precision Energy Filter Improved Utility Shielding Improved Light Armor Plating Improved Light Armor Plating Antimissile System Hacking Suite Authchip [Armor] > --- WEAPON ----------- (None) > --- INVENTORY -------- Antigrav Array Antigrav Array [Rating: 98] Favorites ----------- Power Ion Engine Engine Ion Engine Power Core Light Nuclear Core Reactor Particle Reactor Propulsion Improved VTOL Module Leg Aluminum Leg Hover Unit Combat Antigrav System Flight Unit Improved VTOL Module Utility Hacking Suite Device Structural Scanner Storage Small Storage Unit Processor Machine Analyzer Hackware Hacking Suite Protection Improved Light Armor Plating Weapon Small Laser Energy Gun Small Laser Ballistic Gun Autogun Ballistic Cannon Hardcell Cannon Impact Weapon Heavy Flail Slashing Weapon Mining Claw Build | -11 -10 -9 -9 -8 -7 -6 -5 -5 -5 -4 -4 -3 ------- Run | Jun Mat Mat Sto Mat Fac Fac Fac Upp Upp Fac DSF Res Slots Evolved 14 | . . 2 . 2 2 2 2 . . 2 . 2 Power 1 | . . . . . . 1 . . . . . . Propulsion 3 | . . . . . . . 1 . . 1 . 1 Utility 8 | . . 2 . 2 2 1 1 . . . . . Weapon 2 | . . . . . . . . . . 1 . 1 Parts Attached 125 | 6 . 7 11 12 11 23 10 5 3 . 13 24 Power 15 | 1 . 1 2 2 1 2 1 1 . . . 4 Engine 9 | 1 . 1 2 2 1 . 1 . . . . 1 Core 4 | . . . . . . 2 . 1 . . . 1 Reactor 2 | . . . . . . . . . . . . 2 Propulsion 34 | 2 . 4 3 4 2 1 2 2 1 . 3 10 Treads . | . . . . . . . . . . . . . Leg 6 | 2 . 3 1 . . . . . . . . . Wheel . | . . . . . . . . . . . . . Hover 10 | . . . . . . . . . . . . 10 Flight 18 | . . 1 2 4 2 1 2 2 1 . 3 . Utility 65 | 1 . 2 3 6 7 18 7 2 . . 10 9 Device 42 | . . . 2 3 6 16 6 2 . . 1 6 Storage 2 | 1 . 1 . . . . . . . . . . Processor 5 | . . 1 . . 1 2 . . . . . 1 Hackware 6 | . . . 1 3 . . 1 . . . . 1 Protection 10 | . . . . . . . . . . . 9 1 Artifact . | . . . . . . . . . . . . . Weapon 11 | 2 . . 3 . 1 2 . . 2 . . 1 Energy Gun 2 | 2 . . . . . . . . . . . . Energy Cannon . | . . . . . . . . . . . . . Ballistic Gun 2 | . . . . . . . . . 2 . . . Ballistic Cannon 1 | . . . . . . . . . . . . 1 Launcher . | . . . . . . . . . . . . . Special Weapon . | . . . . . . . . . . . . . Impact Weapon 2 | . . . . . 1 1 . . . . . . Slashing Weapon 4 | . . . 3 . . 1 . . . . . . Piercing Weapon . | . . . . . . . . . . . . . Special Melee Weapon . | . . . . . . . . . . . . . Unidentified Prototypes 6 | . . . 1 1 1 . 1 . . . . 2 Parts Lost 50 | . 2 1 1 4 . . 7 2 5 . 14 14 Power 11 | . . 1 1 2 . . 2 . 1 . . 4 Propulsion 10 | . 1 . . . . . 2 . 1 . 4 2 Utility 23 | . . . . 1 . . 3 2 2 . 8 7 Weapon 6 | . 1 . . 1 . . . . 1 . 2 1 Highest Loss Streak 14 | . 2 1 1 3 . . 7 9 5 . 14 6 To Critical Strikes 1 | . . . . 1 . . . . . . . . Average Slot Usage (%) 71 | . 83 30 68 78 89 85 71 62 53 . 56 45 Engine 4 | . 14 11 10 6 6 4 . . . . . . Core 1 | . . . . . . 1 4 3 2 . . . Leg 1 | . 26 9 . . . . . . . . . . Hover 1 | . . . . . . . . . . . . 7 Flight 11 | . . 3 21 17 15 13 10 15 15 . 16 1 Device 14 | . . . 13 18 24 19 13 5 2 . 2 9 Processor 12 | . . 3 11 9 11 19 17 17 17 . 10 3 Hackware 13 | . . . 1 13 23 20 16 11 7 . 5 8 Protection 1 | . . . . . . . . . . . 14 8 Impact Weapon 1 | . . . . . 3 3 . . . . . . Slashing Weapon 3 | . . . 10 13 3 2 5 5 2 . . . Naked Turns . | . . . . . . . . . . . . . Heaviest Build 61 | 12 12 11 10 9 11 17 13 10 10 6 17 61 Greatest Support 80 | 20 20 34 34 10 16 16 16 15 15 15 19 80 Greatest Overweight (x) 3 | . 1 3 . . 1 1 1 . . . 1 1 Average Overweight (x) . | . . . . . . . . . . . . . Largest Inventory Capacity 8 | 8 8 8 5 5 5 5 5 5 5 5 5 5 Average Capacity 5 | 7 8 5 5 5 5 5 5 5 5 5 5 5 Most Carried 5 | 4 1 4 5 5 5 5 5 5 5 4 5 5 Average Carried 2 | 1 1 1 2 3 4 4 4 3 4 4 2 1 Final Capacity 8 | 8 8 5 5 5 5 5 5 5 5 5 5 5 Final Carried 5 | 1 1 3 3 5 5 5 5 4 4 4 5 . Class Distribution -------------------- 53% | Mutant 18% | Hacker-Ninja 13% | Hacker-Sprinter 8% | Hacker-Scout 3% | Sprinter Dominant Class ---------------- Mutant | -10/Materials Mutant | -9/Materials Mutant | -9/Storage Mutant | -8/Materials Hacker-Ninja | -7/Factory Hacker-Ninja | -6/Factory Hacker-Scout | -5/Factory Hacker-Sprinter | -5/Upper Caves Sprinter | -5/Upper Caves Sprinter | -4/Factory Sprinter | -4/DSF Mutant | -3/Research Resources | -11 -10 -9 -9 -8 -7 -6 -5 -5 -5 -4 -4 -3 ----------- Run | Jun Mat Mat Sto Mat Fac Fac Fac Upp Upp Fac DSF Res Matter Collected 1122 | 136 41 . 24 299 110 106 . 229 46 . 10 121 Remotely . | . . . . . . . . . . . . . Salvage Created 1152 | . . . 39 223 160 106 25 359 55 . 65 120 Parts 49 | . . . 6 5 6 4 3 11 6 . 6 2 Haulers Intercepted 2 | . . . . . 2 . . . . . . . Recyclers Shooed 1 | . . . . . 1 . . . . . . . Parts Field Recycled . | . . . . . . . . . . . . . Retrieved Matter . | . . . . . . . . . . . . . Parts Self-Destructed 11 | . . . . . . . . 5 6 . . . Prevented . | . . . . . . . . . . . . . Kills | -11 -10 -9 -9 -8 -7 -6 -5 -5 -5 -4 -4 -3 ------- Run | Jun Mat Mat Sto Mat Fac Fac Fac Upp Upp Fac DSF Res Combat Hostiles Destroyed 10 | . . . . 1 . . . 3 2 . 2 2 Melee 5 | . . . . 1 . . . 3 1 . . . Guns 3 | . . . . . . . . . 1 . 2 . Cannons 2 | . . . . . . . . . . . . 2 Classes Destroyed 13 | . . . 2 2 2 2 . 2 . . 1 2 Worker 1 | . . . . . . . . . . . . 1 Builder 3 | . . . 1 . . 1 1 . . . . . Tunneler 1 | . . . . . 1 . . . . . . . Hauler 2 | . . . . . 2 . . . . . . . Recycler 3 | . . . . 2 1 . . . . . . . Mechanic 1 | . . . . . . 1 . . . . . . Operator 1 | . . . 1 . . . . . . . . . Watcher 1 | . . . . . . 1 . . . . . . Swarmer 5 | . . . . . . . . 3 2 . . . Cutter 2 | . . . . . . . . . . . 2 . Sentry 1 | . . . . 1 . . . . . . . . Programmer 2 | . . . . . . . . . . . . 2 Samaritan 2 | . . . . . . . . 2 . . . . Best Kill Streak 3 | . . . 1 2 3 1 1 3 1 . 2 2 Combat Bots Only 3 | . . . . 1 . . . 3 1 . 2 1 Max Kills in Single Turn 1 | . . . 1 1 1 1 1 1 1 . 1 1 Gunslinging . | . . . . . . . . . . . . . Exploded . | . . . . . . . . . . . . . Melee 1 | . . . . 1 . . . 1 1 . . . Uniques/NPCs Destroyed . | . . . . . . . . . . . . . Combat | -11 -10 -9 -9 -8 -7 -6 -5 -5 -5 -4 -4 -3 -------- Run | Jun Mat Mat Sto Mat Fac Fac Fac Upp Upp Fac DSF Res Damage Taken 7670 | . 401 644 178 346 26 83 607 169 409 . 1609 3198 Core 2930 | . 122 274 100 176 10 32 331 73 176 . 327 1309 Absorbed by Shields . | . . . . . . . . . . . . . Redirected to Shielding 380 | . . . . . . . . . . . 269 111 Core Remaining (%) 66 | 100 51 . 6 68 98 96 . . 42 . 71 . Volleys Fired 29 | . . . . . . . . . 4 . 8 17 Largest 2 | . . . . . . . . . 1 . 2 1 Hottest 65 | . . . . . . . . . 23 . 46 65 Shots Fired 32 | . . . . . . . . . 4 . 11 17 Gun 15 | . . . . . . . . . 4 . 11 . Cannon 17 | . . . . . . . . . . . . 17 Launcher . | . . . . . . . . . . . . . Special . | . . . . . . . . . . . . . Kinetic 32 | . . . . . . . . . 4 . 11 17 Thermal . | . . . . . . . . . . . . . Explosive . | . . . . . . . . . . . . . Electromagnetic . | . . . . . . . . . . . . . Robot Hit Streak 3 | . . . . . . . . . 2 . 3 2 Robot Miss Streak 3 | . . . . . . . . . 2 . 2 3 Penetration Max . | . . . . . . . . . . . . . Secondary Targets 1 | . . . . . . . . . . . 1 . Max Gunslinging Chain 1 | . . . . . . . . . . . 1 . Shots Hit Robots 61 | . . . 5 9 7 4 3 12 7 . 7 7 Core Hits 23 | . . 1 1 3 3 . . 5 3 . 4 3 Critical Kills . | . . . . . . . . . . . . . Critical Parts Destroyed 1 | . . . . . 1 . . . . . . . Critical Strikes 3 | . . . . . 1 . . 1 . . . 1 Blast 1 | . . . . . . . . . . . . 1 Smash 1 | . . . . . 1 . . . . . . . Sever 1 | . . . . . . . . 1 . . . . Melee Attacks 133 | . . . 10 22 26 41 11 14 9 . . . Impact 41 | . . . . . 16 25 . . . . . . Slashing 92 | . . . 10 22 10 16 11 14 9 . . . Piercing . | . . . . . . . . . . . . . Sneak Attacks 16 | . . . 3 2 4 3 1 3 . . . . Combat Hostiles . | . . . . . . . . . . . . . Follow-up Attacks 1 | . . . . 1 . . . . . . . . Damage Inflicted 3186 | . . 9 222 255 420 398 163 901 245 . 109 464 Guns 136 | . . . . . . . . . 27 . 109 . Cannons 395 | . . . . . . . . . . . . 395 Explosions . | . . . . . . . . . . . . . Melee 2577 | . . . 222 255 420 398 163 901 218 . . . Ramming 78 | . . 9 . . . . . . . . . 69 Kinetic 531 | . . . . . . . . . 27 . 109 395 Thermal . | . . . . . . . . . . . . . Explosive . | . . . . . . . . . . . . . Electromagnetic . | . . . . . . . . . . . . . Impact 441 | . . . . . 229 212 . . . . . . Slashing 2136 | . . . 222 255 191 186 163 901 218 . . . Piercing . | . . . . . . . . . . . . . Highest Corruption 15 | . . . . 1 . . 2 2 2 . 3 15 Average Corruption 4 | . . . . 1 . . 1 2 2 . 2 9 Corruption Purged . | . . . . . . . . . . . . . Corruption Blocked . | . . . . . . . . . . . . . Effects 13 | . . . . . . . . 2 . . . 11 Message Errors 3 | . . . . . . . . . . . . 3 Matter Fused 1 | . . . . . . . . . . . . 1 Heat Flow Errors 2 | . . . . . . . . 1 . . . 1 Energy Discharges 1 | . . . . . . . . . . . . 1 Data Loss (minor) 1 | . . . . . . . . . . . . 1 Data Loss (major) 2 | . . . . . . . . . . . . 2 Alerts 1 | . . . . . . . . 1 . . . . Misdirections 2 | . . . . . . . . . . . . 2 Overload Shots . | . . . . . . . . . . . . . Overflow Damage 948 | . . . 26 . 191 263 70 397 . . . 1 Projectiles 1 | . . . . . . . . . . . . 1 Explosions . | . . . . . . . . . . . . . Melee 947 | . . . 26 . 191 263 70 397 . . . . Knockbacks 9 | . . . . . . 1 . . . . . 8 Impact 4 | . . . . . . 1 . . . . . 3 Kinetic 4 | . . . . . . . . . . . . 4 Secondary 1 | . . . . . . . . . . . . 1 Self-Inflicted Damage 35 | . . 3 . . . . . . . . . 32 Shots . | . . . . . . . . . . . . . Rammed 17 | . . 6 . . . . . . . . . 11 Targets Rammed 17 | . . 6 . . . . . . . . . 11 Kicked . | . . . . . . . . . . . . . Crushed . | . . . . . . . . . . . . . Highest Temperature 466 | . 9 . . 466 . . . 95 . . 4 421 Average Temperature 205 | . 6 . . 231 . . . 63 . . 2 212 Received Heat Transfer 1035 | . 222 90 84 72 6 18 24 . . . 258 261 Effects 9 | . . . . . . . . . . . . 9 Shutdowns 4 | . . . . . . . . . . . . 4 Interference 5 | . . . . . . . . . . . . 5 Siege Activations . | . . . . . . . . . . . . . Robots Corrupted . | . . . . . . . . . . . . . Combat Hostiles . | . . . . . . . . . . . . . Parts Fried 2 | . . . . . . 2 . . . . . . Impact Corruptions 8 | . . . . . 3 5 . . . . . . Robots Melted . | . . . . . . . . . . . . . Combat Hostiles . | . . . . . . . . . . . . . Parts Melted . | . . . . . . . . . . . . . Heat Transferred . | . . . . . . . . . . . . . Parts Sabotaged . | . . . . . . . . . . . . . Parts Stolen . | . . . . . . . . . . . . . Parts Stripped . | . . . . . . . . . . . . . Power Chain Reactions . | . . . . . . . . . . . . . Missiles Intercepted . | . . . . . . . . . . . . . Alert | -11 -10 -9 -9 -8 -7 -6 -5 -5 -5 -4 -4 -3 ------- Run | Jun Mat Mat Sto Mat Fac Fac Fac Upp Upp Fac DSF Res Peak Influence 495 | . 22 83 495 462 391 100 20 . . 18 37 406 Initial 210 | . . . 30 208 210 12 1 . . 18 12 . Average 80 | . 8 44 212 317 165 47 5 . . 18 15 128 Maximum Alert Level 2 | . . . 2 2 1 . . . . . . 2 Low Security (%) 82 | 100 100 100 43 . 51 100 100 . . 100 100 90 Level 1 15 | . . . 47 82 48 . . . . . . 8 Level 2 1 | . . . 9 17 . . . . . . . 1 Level 3 . | . . . . . . . . . . . . . Level 4 . | . . . . . . . . . . . . . Level 5 . | . . . . . . . . . . . . . High Security . | . . . . . . . . . . . . . Max Security . | . . . . . . . . . . . . . Squads Dispatched 26 | . 3 . 4 1 4 7 2 . . . 1 4 Investigation 13 | . 1 . . 1 4 5 1 . . . . 1 Extermination 3 | . . . . . . 1 1 . . . . 1 Reinforcement 8 | . 2 . 2 . . 1 . . . . 1 2 Assault 2 | . . . 2 . . . . . . . . . Garrison . | . . . . . . . . . . . . . Intercept . | . . . . . . . . . . . . . Searches Triggered . | . . . . . . . . . . . . . Construction Impeded 2 | . . . . . . 1 . . . . . 1 Haulers Reinforced . | . . . . . . . . . . . . . Active Scanning Responses . | . . . . . . . . . . . . . Cargo Convoy Interrupts . | . . . . . . . . . . . . . Stealth | -11 -10 -9 -9 -8 -7 -6 -5 -5 -5 -4 -4 -3 --------- Run | Jun Mat Mat Sto Mat Fac Fac Fac Upp Upp Fac DSF Res Distress Signals 6 | . . . 4 1 . 1 . . . . . . Communications Jammed . | . . . . . . . . . . . . . Distress Signals . | . . . . . . . . . . . . . Times Spotted 149 | . 11 9 29 12 5 7 7 5 4 . 8 52 Peak Tracking Total 19 | . 10 5 19 6 3 3 6 5 4 . 4 17 Tactical Retreats 26 | . . 1 5 3 3 2 . 1 . . 1 10 Traps | -11 -10 -9 -9 -8 -7 -6 -5 -5 -5 -4 -4 -3 ------- Run | Jun Mat Mat Sto Mat Fac Fac Fac Upp Upp Fac DSF Res Traps Triggered 3 | . 1 . . . 1 1 . . . . . . Indirectly . | . . . . . . . . . . . . . Trap Hack Attempts . | . . . . . . . . . . . . . Triggered . | . . . . . . . . . . . . . Disarmed . | . . . . . . . . . . . . . Reprogrammed . | . . . . . . . . . . . . . Reused . | . . . . . . . . . . . . . Traps Extracted . | . . . . . . . . . . . . . Installed . | . . . . . . . . . . . . . Triggered . | . . . . . . . . . . . . . Machines | -11 -10 -9 -9 -8 -7 -6 -5 -5 -5 -4 -4 -3 ---------- Run | Jun Mat Mat Sto Mat Fac Fac Fac Upp Upp Fac DSF Res Machines Disabled . | . . . . . . . . . . . . . Max in Single Turn . | . . . . . . . . . . . . . Machines Repaired . | . . . . . . . . . . . . . Machines Sabotaged . | . . . . . . . . . . . . . Overloaded Fab Kills . | . . . . . . . . . . . . . Hacking | -11 -10 -9 -9 -8 -7 -6 -5 -5 -5 -4 -4 -3 --------- Run | Jun Mat Mat Sto Mat Fac Fac Fac Upp Upp Fac DSF Res Machines Accessed 47 | . 1 1 3 6 13 20 1 . . 1 . 1 Terminals 34 | . 1 1 3 6 9 13 . . . 1 . . Fabricators 5 | . . . . . . 3 1 . . . . 1 Repair Stations . | . . . . . . . . . . . . . Recycling Units 5 | . . . . . 3 2 . . . . . . Scanalyzers 1 | . . . . . . 1 . . . . . . Garrison Access 2 | . . . . . 1 1 . . . . . . Total Hacks 125 | . 3 3 10 22 29 51 2 . . 1 . 4 Successful 76 | . 1 1 3 12 20 34 2 . . 1 . 2 Failed 49 | . 2 2 7 10 9 17 . . . . . 2 Catastrophic 17 | . 2 1 2 4 2 6 . . . . . . Database Lockouts . | . . . . . . . . . . . . . Manual 52 | . 2 3 8 10 10 19 . . . . . . Terminals 94 | . 3 3 10 22 22 33 . . . 1 . . Fabricators 15 | . . . . . . 9 2 . . . . 4 Repair Stations . | . . . . . . . . . . . . . Recycling Units 9 | . . . . . 6 3 . . . . . . Scanalyzers 4 | . . . . . . 4 . . . . . . Garrison Access 3 | . . . . . 1 2 . . . . . . Terminal Hacks 51 | . 1 1 3 12 15 18 . . . 1 . . Record 2 | . . . . . . 2 . . . . . . Part Schematic 1 | . . . . . . 1 . . . . . . Open Door 1 | . . . 1 . . . . . . . . . Open DSF 4 | . . . . . 2 1 . . . 1 . . Level Access Points 2 | . . . . . 1 1 . . . . . . Branch Access Points 1 | . . . . . . 1 . . . . . . Emergency Access Points 3 | . . . . 3 . . . . . . . . Terminal Index 2 | . . . . . 1 1 . . . . . . Alert Level 1 | . . . . . . 1 . . . . . . Unreport Threat 3 | . . . . . 2 1 . . . . . . Locate Traps 11 | . . . 1 3 3 4 . . . . . . Dispatch Records 2 | . . . 1 . 1 . . . . . . . Security Status 1 | . . . . 1 . . . . . . . . Patrol Status 2 | . . . . 1 1 . . . . . . . Investigation Status 1 | . . . . 1 . . . . . . . . Recall Investigation 6 | . 1 1 . 1 1 2 . . . . . . Recall Reinforcements 1 | . . . . 1 . . . . . . . . Recall Assault 1 | . . . . 1 . . . . . . . . Hauler Manifests 1 | . . . . . 1 . . . . . . . Registered Components 2 | . . . . . 1 1 . . . . . . Registered Prototypes 1 | . . . . . . 1 . . . . . . Zone Layout 2 | . . . . . 1 1 . . . . . . Fabricator Hacks 11 | . . . . . . 7 2 . . . . 2 Network Status 1 | . . . . . . 1 . . . . . . Load Schematic 5 | . . . . . . 3 1 . . . . 1 Build 5 | . . . . . . 3 1 . . . . 1 Repair Station Hacks . | . . . . . . . . . . . . . Recycling Unit Hacks 5 | . . . . . 2 3 . . . . . . Retrieve Matter 1 | . . . . . . 1 . . . . . . Retrieve Components 4 | . . . . . 2 2 . . . . . . Scanalyzer 4 | . . . . . . 4 . . . . . . Insert Component 2 | . . . . . . 2 . . . . . . Analyze 2 | . . . . . . 2 . . . . . . Garrison Access Hacks . | . . . . . . . . . . . . . Unauthorized Hacks 5 | . . . . . 3 2 . . . . . . Terminals 3 | . . . . . 2 1 . . . . . . Operators 3 | . . . . . 2 1 . . . . . . Fabricators . | . . . . . . . . . . . . . Repair Stations . | . . . . . . . . . . . . . Recycling Units . | . . . . . . . . . . . . . Scanalyzers . | . . . . . . . . . . . . . Garrison Access 2 | . . . . . 1 1 . . . . . . Watchers 2 | . . . . . 1 1 . . . . . . Data Cores Recovered . | . . . . . . . . . . . . . Used . | . . . . . . . . . . . . . Hacking Detections 41 | . 1 1 3 6 10 18 1 . . . . 1 Full Trace Events 12 | . . . . 1 4 5 1 . . . . 1 Feedback Events 1 | . . . . 1 . . . . . . . . Corruption 1 | . . . . 1 . . . . . . . . Feedback Blocked . | . . . . . . . . . . . . . Robot Schematics Acquired . | . . . . . . . . . . . . . Robots Built . | . . . . . . . . . . . . . Authchips . | . . . . . . . . . . . . . Time . | . . . . . . . . . . . . . Total Robot Build Rating . | . . . . . . . . . . . . . Part Schematics Acquired 3 | . . . . . . 3 . . . . . . Parts Built 7 | . . . . . . 6 1 . . . . . Authchips . | . . . . . . . . . . . . . Time 266 | . . . . . . 126 116 . . . . 24 Total Part Build Rating 27 | . . . . . . 24 3 . . . . . Parts Repaired . | . . . . . . . . . . . . . Time . | . . . . . . . . . . . . . Parts Recycled . | . . . . . . . . . . . . . Recycled Matter . | . . . . . . . . . . . . . Retrieved Matter . | . . . . . . . . . . . . . Retrieved Components 6 | . . . . . 3 3 . . . . . . Parts Scanalyzed 2 | . . . . . . 2 . . . . . . Part Schematics Acquired 2 | . . . . . . 2 . . . . . . Parts Damaged . | . . . . . . . . . . . . . Bothacking | -11 -10 -9 -9 -8 -7 -6 -5 -5 -5 -4 -4 -3 ------------ Run | Jun Mat Mat Sto Mat Fac Fac Fac Upp Upp Fac DSF Res Used RIF Installer . | . . . . . . . . . . . . . Robots Hacked . | . . . . . . . . . . . . . Non-combat . | . . . . . . . . . . . . . Combat . | . . . . . . . . . . . . . Robot Hacks Applied . | . . . . . . . . . . . . . Relay Couplers Released . | . . . . . . . . . . . . . Fabnet Peak Effective % . | . . . . . . . . . . . . . Robots Rewired . | . . . . . . . . . . . . . Allies Hacked . | . . . . . . . . . . . . . Hacks Repelled . | . . . . . . . . . . . . . Allies | -11 -10 -9 -9 -8 -7 -6 -5 -5 -5 -4 -4 -3 -------- Run | Jun Mat Mat Sto Mat Fac Fac Fac Upp Upp Fac DSF Res Total Allies 2 | . . . 2 . . . . . . . . . Largest Group 2 | . . . 2 . . . . . . . . . Highest-Rated Group 62 | . . . 62 . . . . . . . . . Highest-Rated Ally 31 | . . . 31 . . . . . . . . . Total Orders . | . . . . . . . . . . . . . Ally Attacks 14 | . . . 14 . . . . . . . . . Total Damage 187 | . . . 187 . . . . . . . . . Kills 4 | . . . 4 . . . . . . . . . Allies Corrupted . | . . . . . . . . . . . . . Allies Melted . | . . . . . . . . . . . . . Intel | -11 -10 -9 -9 -8 -7 -6 -5 -5 -5 -4 -4 -3 ------- Run | Jun Mat Mat Sto Mat Fac Fac Fac Upp Upp Fac DSF Res Robot Analysis Total . | . . . . . . . . . . . . . Derelict Logs Recovered 1 | . . . . . . . . 1 . . . . Drone Launches . | . . . . . . . . . . . . . Drone Recoveries . | . . . . . . . . . . . . . Exploration | -11 -10 -9 -9 -8 -7 -6 -5 -5 -5 -4 -4 -3 ------------- Run | Jun Mat Mat Sto Mat Fac Fac Fac Upp Upp Fac DSF Res Turns Passed 5427 | 1536 110 216 353 349 638 882 412 172 94 3 123 539 Spaces Moved 6639 | 113 89 163 546 612 1337 2008 286 430 187 11 161 696 Core 263 | 13 . 58 . . . . . . . . . 192 Treads . | . . . . . . . . . . . . . Legs 258 | 100 89 60 9 . . . . . . . . . Wheels . | . . . . . . . . . . . . . Hover 345 | . . . . . . . . . . . . 345 Flight 5773 | . . 45 537 612 1337 2008 286 430 187 11 161 159 Fastest Speed 23 | 50 120 100 37 32 32 32 29 29 29 29 23 27 Average Speed 40 | 111 125 116 38 35 32 32 40 29 29 29 29 52 Slowest Speed 200 | 120 190 200 130 40 105 102 105 32 32 29 105 110 Overloaded Moves . | . . . . . . . . . . . . . Propulsion Burnouts . | . . . . . . . . . . . . . Robots Hopped 22 | . . . 8 1 4 7 . . . . . 2 Cave-ins Triggered . | . . . . . . . . . . . . . Exploration Rate (%) 39 | 9 29 19 77 43 34 60 8 65 24 . 92 17 Regions Visited 12 Branch Regions 3 Pre-discovered Areas . | . . . . . . . . . . . . . Known Exits Taken 6 | . . . . . 1 1 1 1 1 1 . . Unknown Exits Taken 5 | 1 1 1 1 1 . . . . . . . . Scrap Searched . | . . . . . . . . . . . . . Spaces Dug 64 | . . . . 9 14 35 6 . . . . . Terrain Destroyed 70 | . . . . 9 14 35 6 . . . . 6 Melee 64 | . . . . 9 14 35 6 . . . . . Projectile 6 | . . . . . . . . . . . . 6 AOE . | . . . . . . . . . . . . . Terrain Rammed . | . . . . . . . . . . . . . Walls Destroyed . | . . . . . . . . . . . . . Machines Disabled . | . . . . . . . . . . . . . Actions | -11 -10 -9 -9 -8 -7 -6 -5 -5 -5 -4 -4 -3 --------- Run | Jun Mat Mat Sto Mat Fac Fac Fac Upp Upp Fac DSF Res Total 9125 | 1522 88 191 662 699 1491 2157 564 453 209 10 225 854 Wait 2064 | 1397 . . 88 47 90 80 250 3 4 . 32 73 Move 6583 | 112 88 162 529 609 1328 1993 285 429 186 10 160 692 Hop 22 | . . . 8 1 4 7 . . . . . 2 Pick Up 81 | 7 . 9 11 5 6 3 2 2 3 . 12 21 Fast Attach 17 | . . . . 3 4 4 3 1 . . 2 . Attach 79 | 6 . 7 8 4 4 5 4 3 3 . 11 24 Detach 10 | . . 1 . 1 1 4 3 . . . . . Swap 29 | . . . 3 5 3 14 3 1 . . . . Drop 45 | . . 6 6 3 7 6 3 . . . . 14 Fire 29 | . . . . . . . . . 4 . 8 17 Melee 131 | . . . 9 21 26 41 11 14 9 . . . Ram 17 | . . 6 . . . . . . . . . 11 Kick . | . . . . . . . . . . . . . Crush . | . . . . . . . . . . . . . Escape Stasis 18 | . . . . . 18 . . . . . . . Rewire . | . . . . . . . . . . . . . Trap . | . . . . . . . . . . . . . Miscellaneous . | . . . . . . . . . . . . . Route ------- -11/Junkyard -10/Materials (discovered 2 exits: *Mat / [*Min]) -9/Materials -9/Storage -8/Materials -7/Factory (discovered 5 exits: *Fac x4 / *Low) -6/Factory (discovered 8 exits: *Fac x4 / Low x2 / *Ext x2) -5/Factory -5/Upper Caves -5/Upper Caves -4/Factory -4/DSF -3/Research History --------- Turn | Location | Event 6 | -11/Junkyard | Discovered new exit (range 14) 1537 | -11/Junkyard | Entered Materials 1538 | -10/Materials | Build established: Mutant 1549 | -10/Materials | Discovered new exit (range 16) 1625 | -10/Materials | Discovered new exit (range 16) 1647 | -10/Materials | Entered another Materials area 1647 | -9/Materials | Evolved 2 slots: Utility x2 1680 | -9/Materials | Discovered new exit (range 16) 1793 | -9/Materials | Core integrity fell below 50% 1863 | -9/Materials | Entered Storage 1873 | -9/Storage | Met a pair of Derelict thieves 2175 | -9/Storage | Core integrity fell below 20% 2211 | -9/Storage | Discovered new exit (range 14) 2216 | -9/Storage | Entered Materials 2216 | -8/Materials | Evolved 2 slots: Utility x2 2413 | -8/Materials | Lost 3 parts (1p1u1w) 2564 | -8/Materials | Discovered new exit (range 3) 2565 | -8/Materials | Entered Factory 2565 | -7/Factory | Evolved 2 slots: Utility x2 2696 | -7/Factory | Build established: Hacker-Sprinter 2821 | -7/Factory | Identified exit to DSF 2826 | -7/Factory | Identified exit to Factory 3120 | -7/Factory | Build established: Hacker-Ninja 3180 | -7/Factory | Discovered new exit (range 9) 3182 | -7/Factory | Identified exit to Lower Caves 3203 | -7/Factory | Entered another Factory area 3203 | -6/Factory | Evolved 2 slots: Power x1, Utility x1 3261 | -6/Factory | Identified exit to Factory 3261 | -6/Factory | Identified exit to Lower Caves 3261 | -6/Factory | Identified exit to Extension 3337 | -6/Factory | Identified exit to DSF 3457 | -6/Factory | Fabricated Mic. Nuclear Core? 3719 | -6/Factory | Fabricated Mic. Nuclear Core? 3866 | -6/Factory | Fabricated Mic. Nuclear Core (x2) 3979 | -6/Factory | Spotted B-75 Beast 4085 | -6/Factory | Entered another Factory area 4085 | -5/Factory | Evolved 2 slots: Propulsion x1, Utility x1 4235 | -5/Factory | Fabricated Imp. VTOL Module? 4488 | -5/Factory | Discovered new exit (range 6) 4489 | -5/Factory | Identified exit to Upper Caves 4497 | -5/Factory | Entered Upper Caves 4557 | -5/Upper Caves | Lost 9 parts (2p2n5u) 4577 | -5/Upper Caves | Learned Factory emergency access door positions 4663 | -5/Upper Caves | Discovered new exit (range 12) 4669 | -5/Upper Caves | Identified exit to Upper Caves 4669 | -5/Upper Caves | Entered another Upper Caves area 4699 | -5/Upper Caves | Core integrity fell below 50% 4729 | -5/Upper Caves | Discovered new exit (range 19) 4740 | -5/Upper Caves | Lost 5 parts (1p1n2u1w) 4763 | -5/Upper Caves | Identified exit to Factory 4763 | -5/Upper Caves | Entered Factory 4763 | -4/Factory | Evolved 2 slots: Propulsion x1, Weapon x1 4766 | -4/Factory | Identified exit to DSF 4766 | -4/Factory | Entered DSF 4786 | -4/DSF | Additional patrols routed to DSF 4816 | -4/DSF | Discovered new exit (range 22) 4889 | -4/DSF | Entered Research 4889 | -3/Research | Evolved 2 slots: Propulsion x1, Weapon x1 4905 | -3/Research | Lost 14 parts (4n8u2w) 4927 | -3/Research | Spotted B-86 Titan 5006 | -3/Research | Found Antimissile System 5235 | -3/Research | Build established: Mutant 5246 | -3/Research | System corruption reached 10% 5269 | -3/Research | Found Prototype Device 5270 | -3/Research | Identified Exp. Thermal Shield 5286 | -3/Research | Lost 6 parts (2p1n2u1w) 5327 | -3/Research | Lost 4 parts (1p1n2u) 5352 | -3/Research | Core integrity fell below 50% 5408 | -3/Research | Core integrity fell below 20% 5428 | -3/Research | Destroyed by S-43 Plague with Heavy Machine Gun Last Messages --------------- 05362_ Penetrated by Slug. 05362_ Slug penetrates Wall. 05363_ Acquired 7 matter. 05364_ Acquired Imp. Cloaking Device. 05366_ System corrupted: Matter fused (-10). 05381_ System corrupted: Heat flow error (+121). 05387_ Acquired Neutrino Core. 05391_ Acquired Cmb. Antigrav System. 05393_ Dropped Cmb. Antigrav System. 05399_ C5GU71D N%KCW1MXQ|OS0WB9, XMTU 05404_ Slug penetrates Wall. 05415_ Slammed into S-43 Plague. 05418_ 0QV6DS7B TYIILHBYT =PEBL#SPW FXCUXHZ 05419_ Slammed into P-80 Master. 05419_ Destabilizing: Core damaged (-52). 05422_ Slammed into S-43 Plague. 05424_ P-80 Master resets S-43 Plague, system corruption cleaned. 05425_ Slammed into S-43 Plague. 05427_ Neutrino Core destroyed. 05428_ Slammed into S-43 Plague. Map ----- +----------------------------------------------------+ | ?????????????????????????????????????????????????? | | ?????????????????????????????????????????????????? | | ?????????????????????????????????????????????????? | | ?????????????????????????????????????????????????? | | ?????????????????????????????????????????????????? | | ?????????????????????????????????????????????????? | | ?????????????????????????????????????????????????? | | ?????????????????????????????????########????????? | | ?????????????????????????????????# #????????? | | ?????????????????????????????##### #????????? | | ?????????????????????????????# # #????????? | | ?????????????????????????????# # #?????#### | | ?????????????????????????????# # ####### | | ?????????????????????????????# # # # | | ?????????????????????????????# #+##+### # | | ?????????????????????????????# # + | | ?????????????????????????#+#?# # ! # | | ???????????????????????## ###"## # | | ???????????????? #### | | ?????????????????######## ! ### ##### #??? | | ?????????????????# #??# #??# #???# #??? | | ?????????????????# #??# #??# #???# #??? | | ?????????????????# #??# ####/###?# #??? | | ???????????????? # #??# # #?# #####+###### | | ???????????????? # s#### # =#?# # = | | ?##############? # psss@sY #?# # | | ?# #? # ####g# #?# # | | ?# #? # #??#g# #?# # | | ?# """ #? # #??# # #?# # | | ## """ #? ######### ########## ############ | | ?+ """ !!! ## #???# + | | ?# !! ## #???# #################### # | | ?# ## #???# #?????### ########## # | | ?# """ ## #???# #?????# # + "" | | ?# """ ## T???# #######%% !!! # ##=="" | | ?# """ ## ???# #""%""# """ !!! # ##=="" | | ?# ## #???#=% + !""" !!! # ## = | | ?# ! ## #???# "### """ # ## | | ##########/##### #####= ##?# # ###### | | !! #??# # | | # ####+######## #??# " " ! + | | # #???????????# #??# ""R"" # | | # #???????????# #??# """"" + | | # #### ###???????????# #??# # ### | | # ####/#####?????????# #??# # # | | # # #????????##+################# # | | # # ! #????????# #??????# # | | # # #????????# #??????# # | | # # #????????# #??????# # | | + # #????????# #??????# # | +----------------------------------------------------+ Best States ------------- Heat Dissipation 46 Energy Generation 41 Energy Capacity 580 Matter Stores 300 Matter Capacity 300 Sight Range 22 Robot Scan Range 16 Terrain Scan Density 10 ECM Strength 2 Jamming Range 14 Cloak Strength 2 Power Amplification 20 Additional Mass Support 6 Armor Coverage 300 Resistance: TH 30 Propulsion Shielding 66 Utility Shielding 66 Point Defense Rating 240 Evasion (%) 65 Energy Filtering 50 Offensive Hacking 30 Authchip Count 1 Item Schematics ----------------- Imp. VTOL Module | -6/Factory | Scanalyzed Hvy. Flail | -6/Factory | Scanalyzed Mic. Nuclear Core | -6/Factory | Hacked Robot Schematics ------------------ None Fabricated ------------ Mic. Nuclear Core | x2 | -6/Factory Mic. Nuclear Core | x2 | -6/Factory Mic. Nuclear Core | x2 | -6/Factory Imp. VTOL Module | x1 | -5/Factory Alien Tech Used ----------------- None Achievements -------------- None Challenges ------------ None Game ------ Seed GammaFactoryCharger Manual? 0 Play Time 02:44:35 Cumulative 49.1 hours Start 2023.09.11 @ 16:28:35 End 2023.09.11 @ 22:28:00 Sessions 3 Manual Loads 0 Difficulty Rogue Special Mode None Game No. 19 Rogue 19 Adventurer 0 Explorer 0 Win Type - Total 1 Types 0/0/0/1/0/0/0/0/0 Lore% 31 Gallery% 33 Achievement% 37 Wizard Run 0 Options --------- ASCII 0 Keyboard 0 Movement Mouse Keybinds 0 Fullscreen 2 Font 18/X11Bold Map View 76x50 Tactical HUD 1 Map Filters NONE Filters NONE Steam 1 RUN: c8b8707e-c355-4796-8b37-fb5978036fec